bitfinex-derivatives/quotes_ETHF0:USTF0_20241228
["timestamp","ask_amount","ask_price","bid_price","bid_amount"]
[1735409782949,0.29556,3389.4,3388.9,3.2078]
[1735409782950,3.2078,3389.4,3388.9,3.2078]
[1735409783110,0.29557,3389.3,3389.1,0.29558]
[1735409783508,3.2078,3389.4,3388.9,3.2078]
[1735409783715,0.29559,3389.1,3388.9,3.5034]
[1735409783908,3.2078,3389.4,3388.9,3.2078]
[1735409784215,0.29558,3389.2,3389.0,0.29559]
[1735409784412,3.2078,3389.4,3388.9,3.5034]
[1735409784609,0.29558,3389.2,3389.0,0.29559]
[1735409784818,3.2078,3389.4,3389.0,0.29559]
[1735409785010,0.29558,3389.2,3389.0,0.29559]
[1735409785314,3.2078,3389.4,3389.2,0.29557]
[1735409785315,0.29557,3389.3,3389.2,0.29557]
[1735409786217,0.73697,3389.3,3389.2,0.29557]
[1735409786715,4.18678544,3389.3,3389.2,0.29557]
[1735409789029,3.89121544,3389.3,3389.2,0.29557]
[1735409789829,4.18678544,3389.3,3389.2,0.29557]
[1735409790016,3.89121544,3389.3,3389.2,0.29557]
[1735409790218,0.4414,3389.3,3389.2,0.29557]
[1735409791723,0.73697,3389.3,3389.2,0.29557]
[1735409792222,0.4414,3389.3,3389.2,0.29557]
[1735409796236,3.44981544,3389.6,3389.5,0.29555]
[1735409796417,3.44981544,3389.6,3389.5,3.50335]
[1735409797627,1.3531,3389.9,3389.8,0.29552]
[1735409798031,1.64862,3389.9,3389.8,0.29552]
[1735409798827,1.3531,3389.9,3389.8,0.29552]
[1735409799731,6.65761544,3390.2,3390.1,0.2955]
[1735409800127,3.44981544,3390.2,3390.1,0.2955]
[1735409800334,3.44981544,3390.3,3389.8,0.7388]
[1735409800630,3.44981544,3390.3,3390.2,0.29549]
[1735409801534,0.4538,3390.5,3389.9,0.2949]
[1735409801734,0.4538,3390.5,3390.4,0.29547]
[1735409801936,2.11876283,3390.5,3389.5,3.2078]
[1735409802234,3.2078,3390.4,3389.5,3.2078]
[1735409802835,0.2955,3390.1,3389.9,0.29551]
[1735409803031,0.8464,3390.0,3389.9,0.29551]
[1735409803227,1.2975,3390.0,3389.9,0.29551]
[1735409808839,6.65761544,3390.5,3389.7,3.2078]
[1735409809039,1.3884,3390.3,3390.2,0.29549]
[1735409811346,0.4663,3390.3,3390.2,0.29549]
[1735409811643,3.2078,3390.5,3390.4,0.29547]
[1735409818940,1.3615,3390.7,3390.6,0.29546]
[1735409819141,3.44981544,3390.9,3390.6,0.29546]
[1735409819340,7.11701544,3391.0,3390.6,0.29546]
[1735409819548,7.11701544,3391.0,3390.9,0.29543]
[1735409821150,3.6672,3391.0,3390.9,0.29543]
[1735409822851,0.4594,3391.0,3390.9,0.29543]
[1735409826751,0.8642,3391.1,3391.0,0.29542]
[1735409831561,0.29542,3391.0,3390.8,0.29544]
[1735409831760,0.8642,3391.1,3390.2,0.73873]
[1735409831761,4.072,3391.1,3390.2,0.73873]
[1735409831959,3.2078,3390.7,3390.6,0.29545]
[1735409832353,3.2078,3390.7,3390.5,0.29546]
[1735409832566,3.50325,3390.7,3390.5,0.29546]
[1735409832760,3.2078,3390.7,3390.6,0.29546]
[1735409833962,0.8642,3391.1,3390.6,0.73865]
[1735409834165,0.8642,3391.1,3391.0,0.29542]
[1735409841355,0.4393,3391.2,3391.1,0.29541]
[1735409846768,0.8661,3391.4,3391.3,0.29539]
[1735409846970,0.8661,3391.4,3391.3,3.50319]
[1735409849468,0.8661,3391.4,3391.3,0.29539]
[1735409850160,3.2078,3391.8,3391.1,1.66496283]
[1735409850470,3.44981544,3391.9,3391.8,0.29535]
[1735409850672,5.472375,3392.0,3391.9,0.29534]
[1735409851063,0.29534,3391.9,3391.7,0.29535]
[1735409851263,5.472375,3392.0,3391.4,3.2078]
[1735409851471,0.29535,3391.8,3391.6,0.29536]
[1735409851873,0.29535,3391.8,3391.5,0.29538]
[1735409852070,0.29536,3391.7,3391.5,0.29537]
[1735409852381,0.4241,3391.6,3391.0,2.83901283]
[1735409852677,0.4241,3391.6,3391.5,0.29538]
[1735409859076,0.4241,3391.6,3391.0,2.40351283]
[1735409859283,3.2078,3391.4,3390.7,4.63726109]
[1735409859595,3.2078,3391.0,3390.7,4.63726109]
[1735409859877,0.29544,3390.8,3390.7,4.63726109]
[1735409860478,0.9024,3390.9,3390.5,0.29546]
[1735409860479,0.29545,3390.7,3390.5,0.29546]
[1735409860680,0.441,3390.6,3390.5,0.29546]
[1735409862789,0.73645,3390.6,3390.5,0.29546]
[1735409863082,0.441,3390.6,3390.5,0.29546]
[1735409865487,5.027875,3390.6,3390.5,0.29546]
[1735409866978,0.441,3390.6,3390.5,0.29546]
[1735409867694,4.586875,3390.7,3390.2,0.73872]
[1735409867989,4.586875,3390.7,3390.6,0.29545]
[1735409869886,2.30051718,3390.9,3390.4,1.66496283]
[1735409870089,2.30051718,3390.9,3390.8,0.29544]
[1735409872290,2.59594718,3390.9,3390.7,0.29544]
[1735409872497,2.30051718,3390.9,3390.2,4.63726109]
[1735409872689,0.29546,3390.6,3390.4,0.29547]
[1735409872885,0.9177,3390.5,3390.4,0.29547]
[1735409874481,1.3684,3390.5,3390.4,0.29547]
[1735409874891,1.3684,3390.5,3390.1,0.2955]
[1735409875084,0.29548,3390.3,3390.1,0.2955]
[1735409876811,2.59599718,3390.3,3390.1,0.2955]
[1735409877210,0.2955,3390.1,3389.9,0.29551]
[1735409877396,2.30051718,3390.3,3389.8,0.29552]
[1735409877397,0.29551,3390.0,3389.8,0.29552]
[1735409877699,0.8526,3389.9,3389.8,0.29552]
[1735409877902,1.3058,3389.9,3389.8,0.29552]
[1735409878801,3.60631718,3389.9,3389.8,0.29552]
[1735409879101,2.30051718,3389.9,3389.8,1.96048283]
[1735409879490,2.30051718,3389.9,3389.8,5.16828283]
[1735409879996,2.75541718,3390.4,3389.8,4.87276283]
[1735409880198,2.75541718,3390.4,3390.3,0.29548]
[1735409881315,0.4549,3390.4,3389.8,5.61157283]
[1735409881505,0.4549,3390.4,3389.8,4.87276283]
[1735409881795,3.5033,3390.1,3389.5,6.30222392]
[1735409881997,3.5033,3390.1,3389.8,0.29552]
[1735409882192,0.29552,3389.9,3389.7,0.29553]
[1735409882390,0.4289,3389.8,3389.7,0.29553]
[1735409882590,1.3186,3389.8,3389.7,0.29553]
[1735409883401,2.30051718,3390.3,3390.1,0.29549]
[1735409883594,1.3186,3390.2,3390.1,0.29549]
[1735409883799,1.3186,3390.2,3390.0,0.2955]
[1735409883999,1.3186,3390.2,3389.6,0.4414]
[1735409884202,2.30051718,3390.1,3389.5,2.40384283]
[1735409884405,2.30051718,3390.1,3390.0,0.29551]
[1735409885403,4.5264,3390.2,3389.8,0.29552]
[1735409885591,4.5264,3390.2,3390.0,0.2955]
[1735409885995,4.5264,3390.2,3390.1,0.2955]
[1735409886206,3.2078,3390.2,3390.1,0.2955]
[1735409886616,2.30051718,3390.3,3390.1,1.66496283]
[1735409886804,3.45077578,3390.4,3390.3,0.29548]
[1735409886805,2.30051718,3390.4,3390.3,0.29548]
[1735409886997,2.30051718,3390.4,3390.3,3.50328]
[1735409888602,0.8822,3391.0,3390.3,3.50328]
[1735409888603,0.8822,3391.0,3390.5,0.73866]
[1735409888804,0.8822,3391.0,3390.9,0.29543]
[1735409890712,0.8822,3391.0,3390.3,3.2078]
[1735409890926,0.8822,3391.0,3390.4,0.73868]
[1735409891120,0.8822,3391.0,3390.9,0.29543]
[1735409892441,2.30051718,3391.1,3391.0,0.29542]
[1735409893621,0.8867,3391.3,3390.7,5.61136283]
[1735409893821,0.8867,3391.3,3391.2,0.2954]
[1735409898519,0.8867,3391.3,3390.7,4.87276283]
[1735409898822,0.2954,3391.2,3391.0,0.29541]
[1735409899021,0.8867,3391.3,3390.7,4.87276283]
[1735409899222,0.8867,3391.3,3391.1,0.2954]
[1735409899418,1.18209,3391.3,3391.1,0.2954]
[1735409900022,0.2954,3391.2,3391.0,0.29542]
[1735409900327,0.2954,3391.2,3391.0,0.29541]
[1735409900524,0.8867,3391.3,3390.7,4.87276283]
[1735409900838,1.1821,3391.3,3391.0,0.29541]
[1735409901625,1.1821,3391.3,3391.1,0.29541]
[1735409902719,0.8867,3391.3,3390.7,5.61137283]
[1735409902921,0.2954,3391.2,3391.0,0.29541]
[1735409903431,0.2954,3391.2,3390.7,5.61137283]
[1735409903627,0.2954,3391.2,3391.0,0.29541]
[1735409905318,3.18721718,3391.3,3390.7,2.40357283]
[1735409905520,3.48261718,3391.3,3391.1,0.29541]
[1735409906121,3.18721718,3391.3,3391.2,0.2954]
[1735409907922,0.2954,3391.2,3391.0,0.29541]
[1735409908428,3.18721718,3391.3,3390.6,3.94644]
[1735409908767,3.48261718,3391.3,3390.8,0.7386]
[1735409908928,3.18721718,3391.3,3391.2,0.2954]
[1735409910827,3.48261718,3391.3,3391.1,0.29541]
[1735409911137,3.48261718,3391.3,3390.8,0.7386]
[1735409911330,3.48261718,3391.3,3391.2,0.2954]
[1735409912034,3.48261718,3391.3,3391.1,0.29541]
[1735409912726,3.18721718,3391.3,3390.9,0.29542]
[1735409912923,3.18721718,3391.3,3390.6,3.2078]
[1735409912924,0.29543,3390.9,3390.6,3.2078]
[1735409913129,0.4478,3390.8,3390.7,0.29545]
[1735409913729,0.4478,3390.8,3390.6,3.2078]
[1735409913933,1.18795,3390.7,3390.6,3.2078]
[1735409914634,1.18795,3390.7,3390.6,3.50325]
[1735409915029,0.8925,3390.7,3390.6,3.50325]
[1735409917441,0.8925,3390.7,3390.6,0.29545]
[1735409917634,1.18795,3390.7,3390.6,0.29545]
[1735409917836,0.8925,3390.7,3390.6,0.29545]
[1735409918231,1.18795,3390.7,3390.6,0.29545]
[1735409918933,0.29546,3390.6,3390.5,0.29546]
[1735409920231,3.19301718,3390.7,3390.1,1.66496283]
[1735409920439,3.48846718,3390.7,3390.6,0.29545]
[1735409923633,3.19301718,3390.7,3389.9,3.2078]
[1735409924135,0.29548,3390.4,3390.1,0.2955]
[1735409924339,0.29548,3390.4,3390.2,0.29548]
[1735409924641,0.4543,3390.3,3390.2,0.29548]
[1735409927840,0.4543,3390.3,3389.9,3.2078]
[1735409928242,0.4543,3390.3,3390.2,0.29549]
[1735409928545,0.4543,3390.3,3389.9,3.2078]
[1735409928742,0.29549,3390.2,3390.1,0.2955]
[1735409928948,2.75481718,3390.3,3389.9,3.2078]
[1735409928949,3.05029718,3390.3,3389.9,3.2078]
[1735409929139,0.4574,3390.1,3390.0,0.29551]
[1735409930951,2.75481718,3390.3,3390.2,0.29549]
[1735409931147,2.30051718,3390.3,3390.2,0.29549]
[1735409932343,2.30051718,3390.3,3390.2,1.02089]
[1735409932948,1.42641718,3390.3,3390.2,6.02089]
[1735409933949,3.45077578,3390.4,3390.2,5.7254]
[1735409934146,3.45077578,3390.4,3390.3,4.68528]
[1735409934357,3.45077578,3391.2,3391.1,0.29541]
[1735409935450,6.65857578,3391.5,3391.0,1.66496283]
[1735409935649,6.65857578,3391.5,3391.4,0.29539]
[1735409935846,3.45077578,3391.5,3391.4,0.29539]
[1735409936841,3.45077578,3391.5,3391.4,5.29539]
[1735409937047,3.45077578,3391.9,3391.8,0.29535]
[1735409938150,3.45077578,3391.9,3391.8,5.29535]
[1735409938453,3.45077578,3391.9,3391.8,0.29535]
[1735409938660,3.45077578,3392.6,3392.5,0.29529]
[1735409938848,3.45077578,3392.6,3392.5,3.50309]
[1735409940172,0.4566,3392.7,3392.6,0.29528]
[1735409940353,0.4438,3393.0,3392.9,0.29525]
[1735409940968,0.4655,3393.2,3393.1,0.29524]
[1735409941254,0.4655,3393.2,3392.9,3.2078]
[1735409941657,0.4655,3393.2,3392.9,0.29525]
[1735409941950,0.4655,3393.2,3392.6,1.66496283]
[1735409942852,0.4655,3393.2,3393.1,0.29524]
[1735409952461,0.4655,3393.2,3392.6,1.66496283]
[1735409952668,0.29524,3393.1,3392.7,0.29527]
[1735409952961,3.2078,3393.0,3392.6,0.29528]
[1735409953158,3.50305,3393.0,3392.6,0.29528]
[1735409953561,3.2078,3393.0,3392.1,1.91931]
[1735409953863,3.2078,3392.6,3392.0,1.66496283]
[1735409954162,1.3282,3392.5,3392.4,0.29529]
[1735409955961,0.4587,3392.5,3392.4,0.29529]
[1735409959764,0.4587,3392.5,3392.4,3.50309]
[1735409963164,0.8938,3393.1,3393.0,0.29525]
[1735409964570,1.3204,3393.1,3393.0,0.29525]
[1735409972982,1.3204,3393.1,3392.9,0.29525]
[1735409973277,1.61564,3393.1,3392.8,0.29526]
[1735409975982,1.3204,3393.1,3392.5,4.87276283]
[1735409976281,0.29527,3392.8,3392.5,3.50309]
[1735409976478,0.29527,3392.7,3392.5,3.50309]
[1735409976678,1.3204,3393.1,3392.5,3.50309]
[1735409976884,0.29527,3392.8,3392.5,3.50309]
[1735409977187,0.29526,3392.8,3392.5,3.2078]
[1735409977382,0.29526,3392.8,3392.5,3.50308]
[1735409978675,0.29526,3392.8,3392.6,0.29528]
[1735409980182,0.29528,3392.7,3392.5,3.50309]
[1735409980378,0.29527,3392.8,3392.5,3.50309]
[1735409980582,0.4651,3392.6,3392.5,3.50309]
[1735409981177,0.29529,3392.5,3392.1,3.2078]
[1735409981378,1.17079,3392.5,3392.2,0.29531]
[1735409982987,4.586875,3392.4,3392.2,0.29531]
[1735409985289,4.586875,3392.4,3392.1,0.29532]
[1735409985590,4.882175,3392.4,3392.1,0.29532]
[1735409985790,4.586875,3392.4,3391.7,3.96358]
[1735409985989,4.586875,3392.4,3392.2,0.29531]
[1735409986191,4.586875,3392.4,3391.7,3.96358]
[1735409986387,4.586875,3392.4,3392.2,0.29531]
[1735409989894,1.1708,3392.5,3392.2,0.29531]
[1735409989895,3.46482774,3392.3,3392.2,0.29531]
[1735409990790,3.46482774,3392.4,3391.7,8.60288256]
[1735409990988,0.29531,3392.3,3392.1,0.29532]
[1735409991188,3.76012774,3392.4,3392.1,0.29532]
[1735409991889,0.29532,3392.2,3391.7,7.86449256]
[1735409992294,0.4288,3392.1,3392.0,0.29533]
[1735409992485,0.4288,3392.1,3391.9,0.29534]
[1735409992689,0.4288,3392.1,3391.7,7.86449256]
[1735409993027,0.29534,3391.9,3391.7,4.65669256]
[1735409993192,0.8748,3391.8,3391.7,4.65669256]
[1735409993424,0.8748,3391.8,3391.7,4.95205256]
[1735409993598,0.8748,3391.8,3391.7,6.61701539]
[1735409993894,7.794675,3392.0,3391.9,0.29534]
[1735409995607,7.794675,3392.0,3391.7,1.68235283]
[1735409995608,3.50314,3392.0,3391.7,0.31274]
[1735409995798,3.50314,3392.0,3391.8,0.29535]
[1735409996208,3.50314,3392.0,3391.7,0.01739]
[1735409996401,3.50314,3392.0,3391.7,0.31274]
[1735409997696,6.9660345,3392.0,3391.7,0.31274]
[1735409997899,6.6706945,3392.0,3391.7,0.01739]
[1735409999101,6.6706945,3392.0,3391.3,0.29539]
[1735409999306,3.2078,3391.5,3391.1,6.30426539]
[1735409999497,0.8428,3391.4,3391.3,0.29539]
[1735410001602,0.8428,3391.4,3391.1,1.66496283]
[1735410001803,0.8428,3391.4,3391.2,0.2954]
[1735410002191,0.4659,3391.3,3391.2,0.2954]
[1735410004100,0.4659,3391.3,3391.1,1.66496283]
[1735410004303,0.2954,3391.2,3391.0,0.29542]
[1735410004503,0.4659,3391.3,3390.9,3.2078]
[1735410004907,3.2078,3391.1,3390.5,6.30426539]
[1735410005106,0.29543,3390.9,3390.7,0.29544]
[1735410005416,0.4234,3390.8,3390.7,0.29544]
[1735410005606,1.17694,3390.8,3390.5,6.59972539]
[1735410005822,0.29545,3390.7,3390.5,4.93476256]
[1735410006114,0.73905,3390.7,3390.5,0.29546]
[1735410006304,3.6514,3390.7,3389.9,9.51206539]
[1735410006525,0.29548,3390.4,3390.0,0.29551]
[1735410006709,0.29548,3390.3,3390.0,0.29551]
[1735410006902,0.29548,3390.3,3389.9,9.51206539]
[1735410006903,0.4621,3390.2,3389.9,9.51206539]
[1735410007104,0.4231,3390.1,3389.9,9.80757539]
[1735410007411,0.4231,3390.1,3389.9,8.14261256]
[1735410008001,0.4231,3390.1,3389.9,3.50331]
[1735410009009,0.4231,3390.1,3390.0,0.29551]
[1735410009907,3.2078,3390.7,3390.5,0.29546]
[1735410010216,0.4278,3390.6,3390.5,0.29546]
[1735410010602,3.4628945,3391.0,3390.3,4.87276283]
[1735410010809,0.72322,3391.0,3390.3,4.87276283]
[1735410011008,0.72322,3391.0,3390.7,0.29544]
[1735410011812,0.4278,3391.0,3390.7,0.29544]
[1735410012104,0.72322,3391.0,3390.7,0.29544]
[1735410012305,0.4278,3391.0,3390.4,0.73869]
[1735410012902,0.4278,3391.0,3390.9,0.29543]
[1735410013308,0.4278,3391.0,3390.8,0.29543]
[1735410013513,0.4278,3391.0,3390.9,0.29543]
[1735410014811,3.2078,3391.1,3391.0,0.29542]
[1735410016107,0.4538,3391.7,3391.1,0.29541]
[1735410016509,0.4538,3391.7,3391.6,0.29537]
[1735410018213,3.2078,3392.0,3391.9,0.29534]
[1735410018610,3.2078,3392.0,3391.5,1.66496283]
[1735410018810,3.2078,3392.0,3391.2,1.66496283]
[1735410018811,0.29535,3391.9,3391.2,1.66496283]
[1735410019009,0.29535,3391.9,3391.5,0.29537]
[1735410019419,0.4442,3391.8,3391.5,0.29537]
[1735410019833,0.91,3391.7,3391.5,0.29537]
[1735410020415,0.91,3391.7,3391.2,1.66496283]
[1735410020720,3.2078,3391.6,3391.0,3.2078]
[1735410021040,0.29541,3391.2,3391.0,3.2078]
[1735410021320,1.351,3391.1,3391.0,3.2078]
[1735410021513,1.351,3391.1,3391.0,3.50322]
[1735410026624,1.351,3391.1,3391.0,3.2078]
[1735410027022,1.351,3391.1,3391.0,3.50322]
[1735410029226,1.351,3391.1,3390.0,1.47755]
[1735410029227,4.5588,3391.1,3390.3,1.66496283]
[1735410029421,4.5588,3391.1,3390.4,0.7387]
[1735410029617,4.85422,3391.1,3390.8,0.29544]
[1735410031226,0.29542,3391.0,3390.8,0.29544]
[1735410031425,4.85422,3391.1,3390.8,0.29544]
[1735410032931,4.5588,3391.1,3390.9,0.29543]
[1735410033922,4.5588,3391.1,3390.3,1.66496283]
[1735410034122,4.85422,3391.1,3390.8,0.29543]
[1735410034326,4.5588,3391.1,3390.3,1.66496283]
[1735410034528,4.5588,3391.1,3390.9,0.29542]
[1735410035825,4.5588,3391.1,3390.5,0.73866]
[1735410036026,4.85422,3391.1,3390.9,0.29543]
[1735410036427,4.5588,3391.1,3390.9,0.29543]
[1735410036724,4.5588,3391.1,3390.3,1.66496283]
[1735410036929,4.5588,3391.1,3390.6,2.40360283]
[1735410037136,4.5588,3391.1,3390.9,0.29542]
[1735410037627,4.5588,3391.1,3391.0,0.29542]
[1735410038232,4.5588,3391.1,3390.6,2.40360283]
[1735410038529,4.5588,3391.1,3391.0,0.29542]
[1735410039228,4.5588,3391.1,3390.9,0.29542]
[1735410039930,4.5588,3391.1,3391.0,0.29542]
[1735410040121,4.5588,3391.1,3390.6,2.40360283]
[1735410040323,4.5588,3391.1,3390.9,0.29542]
[1735410041127,4.5588,3391.1,3390.6,2.40360283]
[1735410041328,4.5588,3391.1,3390.9,0.29542]
[1735410042132,4.5588,3391.1,3390.5,3.2078]
[1735410042133,0.29542,3391.0,3390.7,0.29544]
[1735410042328,0.29542,3391.0,3390.5,3.2078]
[1735410042329,4.85421,3391.1,3390.8,0.29543]
[1735410042733,4.5588,3391.1,3390.5,3.2078]
[1735410042935,4.5588,3391.1,3390.9,0.29543]
[1735410044222,4.5588,3391.1,3390.9,0.29542]
[1735410045836,4.5588,3391.1,3390.5,3.2078]
[1735410046037,4.5588,3391.1,3390.9,0.29542]
[1735410046430,4.85422,3391.1,3390.8,0.29543]
[1735410047840,8.3171145,3391.1,3390.8,0.29543]
[1735410048540,8.0216945,3391.1,3390.5,3.2078]
[1735410049041,8.0216945,3391.1,3390.8,0.29543]
[1735410049240,8.3171045,3391.1,3390.8,0.29543]
[1735410049551,8.0216945,3391.1,3390.9,0.29542]
[1735410053042,8.0216945,3391.1,3390.5,5.37796256]
[1735410053242,8.3171045,3391.1,3390.9,0.29542]
[1735410053446,8.0216945,3391.1,3390.9,0.29542]
[1735410053836,8.0216945,3391.1,3390.5,5.37796256]
[1735410054139,8.0216945,3391.1,3391.0,0.29542]
[1735410056442,4.5588,3391.1,3391.0,0.29542]
[1735410058145,4.5588,3391.1,3390.6,4.63930256]
[1735410058339,4.5588,3391.1,3390.9,0.29542]
[1735410059044,9.145675,3391.1,3390.9,0.29542]
[1735410060141,9.145675,3391.1,3391.0,0.29542]
[1735410061148,9.145675,3391.1,3390.7,0.73205531]
[1735410061645,9.145675,3391.1,3391.0,0.29542]
[1735410064050,5.937875,3391.1,3391.0,0.29542]
[1735410065454,1.351,3391.1,3391.0,0.29542]
[1735410066552,5.937875,3391.1,3391.0,0.29542]
[1735410069253,1.351,3391.1,3391.0,4.93472256]
[1735410072350,5.98061092,3391.1,3391.0,4.93472256]
[1735410072957,4.62961092,3391.1,3391.0,4.93472256]
[1735410073458,4.62961092,3391.2,3391.0,4.92880542]
[1735410073655,4.62961092,3391.2,3391.1,1.02746531]
[1735410075859,4.62961092,3391.3,3391.2,0.2954]
[1735410078760,8.98083127,3391.5,3391.3,0.29539]
[1735410078761,4.62961092,3391.4,3391.3,0.29539]
[1735410079264,4.62961092,3391.4,3391.3,1.02744531]
[1735410079962,4.62961092,3391.4,3391.3,12.61594977]
[1735410079963,2.31304548,3391.4,3391.3,12.61594977]
[1735410080257,2.31304548,3391.4,3391.3,12.91133977]
[1735410080468,2.31304548,3391.4,3391.3,17.91133977]
[1735410081064,2.31304548,3391.4,3391.3,12.91133977]
[1735410081264,2.31304548,3391.4,3391.3,5.95238593]
[1735410081561,2.31304548,3391.7,3391.3,14.91619103]
[1735410081758,2.31304548,3391.7,3391.6,1.02742531]
[1735410082155,2.31304548,3391.7,3391.6,4.23522531]
[1735410093073,2.31304548,3391.7,3391.6,3.50317]
[1735410093379,0.8972,3391.9,3391.6,9.01897436]
[1735410093581,0.8972,3391.9,3391.8,1.02740531]
[1735410093976,0.8972,3391.9,3391.8,0.29535]
[1735410094284,0.8972,3391.9,3391.7,0.73205531]
[1735410094483,0.8972,3391.9,3391.8,0.29535]
[1735410095872,0.8972,3391.9,3391.8,3.50315]
[1735410099882,0.4626,3391.9,3391.8,3.50315]
[1735410100691,0.4626,3391.9,3391.8,4.23520531]
[1735410101885,0.4626,3391.9,3391.8,3.50315]
[1735410102994,0.449,3392.1,3391.8,3.93985531]
[1735410103197,0.449,3392.1,3392.0,1.75944062]
[1735410104187,0.4634,3392.3,3392.2,0.29531]
[1735410104394,2.31304548,3392.7,3392.5,0.29529]
[1735410104395,0.8679,3392.6,3392.5,0.29529]
[1735410104585,1.2923,3392.6,3392.5,1.02734531]
[1735410109392,1.2923,3392.6,3392.5,0.32804531]
[1735410109786,1.2923,3392.6,3392.4,0.29529]
[1735410109986,1.2923,3392.6,3392.5,0.29529]
[1735410112894,1.2923,3392.6,3392.4,0.29529]
[1735410113297,1.2923,3392.6,3392.5,0.29529]
[1735410118412,1.2923,3392.6,3392.5,1.95900913]
[1735410121596,1.2923,3392.6,3392.5,0.29529]
[1735410124596,1.2923,3392.6,3392.5,1.95900913]
[1735410124801,0.8679,3392.6,3392.5,1.95900913]
[1735410129699,0.8679,3392.6,3392.5,1.02649592]
[1735410138107,0.8679,3392.6,3392.5,1.45899592]
[1735410141713,0.8679,3392.6,3392.5,0.29529]
[1735410141913,0.8679,3392.6,3392.4,5.65867028]
[1735410142807,3.18094548,3392.6,3392.5,0.29529]
[1735410145208,3.18094548,3392.6,3392.5,4.92746436]
[1735410145209,0.8679,3392.6,3392.5,4.92746436]
[1735410146713,3.18094548,3392.6,3392.5,4.92746436]
[1735410147321,0.8679,3392.6,3392.5,4.92746436]
[1735410147718,4.33746822,3392.6,3392.5,0.29529]
[1735410148819,4.33746822,3392.6,3392.5,4.92746436]
[1735410151226,0.8679,3392.6,3392.5,4.92746436]
[1735410153720,4.33796707,3392.6,3392.5,9.85281525]
[1735410155218,4.33796707,3392.6,3392.5,12.16890243]
[1735410161643,3.47006707,3392.6,3392.5,12.62420243]
[1735410162631,3.47006707,3392.6,3392.5,13.35540835]
[1735410162928,3.47006707,3392.6,3392.5,12.62420243]
[1735410163125,2.31463891,3392.8,3392.7,0.29527]
[1735410163321,2.31463891,3392.8,3392.7,1.75768184]
[1735410163529,2.31463891,3392.8,3392.7,6.75768184]
[1735410164343,5.77303127,3393.3,3393.0,0.29524]
[1735410164528,0.92764209,3393.4,3393.3,0.29522]
[1735410164837,0.92764209,3393.4,3393.3,4.23422592]
[1735410165831,1.3466,3393.7,3393.3,4.23422592]
[1735410165832,1.3466,3393.7,3393.6,0.29519]
[1735410166333,0.4291,3393.7,3393.6,0.29519]
[1735410166537,1.3468,3394.5,3394.4,0.29512]
[1735410166852,1.3468,3394.5,3394.4,1.02632592]
[1735410169825,3.2078,3395.0,3394.4,1.66152285]
[1735410170031,3.2078,3395.0,3394.9,0.29508]
[1735410170241,0.8883,3395.2,3395.1,0.29506]
[1735410170450,3.2078,3395.8,3395.1,1.66152285]
[1735410170737,0.4225,3395.6,3395.5,0.29503]
[1735410170943,3.2078,3395.8,3395.2,0.73763]
[1735410171135,0.4429,3395.6,3395.5,0.29503]
[1735410172042,0.4429,3395.6,3395.4,1.66152285]
[1735410172244,0.4429,3395.6,3395.2,0.29505]
[1735410172444,0.4429,3395.6,3395.1,1.95658285]
[1735410172751,0.4429,3395.6,3395.1,1.66152285]
[1735410172752,0.29504,3395.4,3395.1,1.66152285]
[1735410172953,0.4655,3395.3,3394.9,4.3848]
[1735410173141,0.4655,3395.3,3394.9,1.177]
[1735410173340,0.4655,3395.3,3394.9,1.47207]
[1735410173760,0.4655,3395.3,3394.9,1.177]
[1735410173937,0.4563,3395.2,3394.9,1.177]
[1735410174942,0.4563,3395.2,3394.9,1.47207]
[1735410176358,0.4563,3395.2,3394.9,1.177]
[1735410176646,0.29506,3395.1,3394.6,0.29511]
[1735410176850,0.29508,3395.0,3394.5,3.2078]
[1735410177042,0.4563,3395.2,3394.5,3.2078]
[1735410177043,5.4563,3395.2,3394.5,3.2078]
[1735410177346,0.29509,3394.8,3394.5,3.2078]
[1735410177552,0.8569,3394.7,3394.5,3.2078]
[1735410177846,3.50291,3394.6,3394.2,1.177]
[1735410178047,0.4288,3394.5,3394.2,1.177]
[1735410178754,0.72392,3394.5,3394.0,1.95667285]
[1735410178954,0.4288,3394.5,3394.0,1.95667285]
[1735410179356,0.4288,3394.5,3393.8,1.47217]
[1735410179357,0.29513,3394.4,3393.8,1.47217]
[1735410179539,0.29513,3394.3,3393.8,1.47217]
[1735410179739,0.29513,3394.4,3393.8,1.177]
[1735410179940,0.4453,3394.2,3393.9,0.29517]
[1735410182538,3.6531,3394.2,3393.9,0.29517]
[1735410183471,3.94824,3394.2,3393.8,0.29517]
[1735410183854,3.6531,3394.2,3393.9,0.29517]
[1735410187650,3.94824,3394.2,3393.8,0.29517]
[1735410187851,0.29515,3394.1,3393.7,1.66152285]
[1735410188148,3.6531,3394.2,3393.7,1.66152285]
[1735410188149,0.4526,3394.0,3393.8,0.29517]
[1735410190250,0.4526,3394.0,3393.9,0.29517]
[1735410195649,3.2078,3394.2,3394.1,0.29515]
[1735410195858,3.2078,3394.2,3394.1,1.95667285]
[1735410197354,3.2078,3394.2,3394.1,0.29515]
[1735410197556,3.2078,3394.2,3394.0,0.29516]
[1735410198559,3.2078,3394.2,3393.8,1.66152285]
[1735410198861,3.2078,3394.2,3394.1,0.29515]
[1735410199256,3.2078,3394.2,3394.1,1.95667285]
[1735410206359,0.4395,3394.4,3394.3,0.29513]
[1735410212869,0.4395,3394.4,3394.1,4.6305579]
[1735410213071,0.4395,3394.4,3394.2,0.29514]
[1735410213956,0.4395,3394.4,3394.3,0.29513]
[1735410220457,0.4395,3394.4,3394.3,5.59393993]
[1735410221767,0.4395,3394.4,3394.3,4.93098148]
[1735410222969,0.4395,3394.4,3394.3,11.87681833]
[1735410223167,0.4395,3394.4,3394.3,7.24096685]
[1735410224170,0.4395,3394.4,3394.3,0.29513]
[1735410225172,0.4395,3394.4,3394.3,4.93224088]